Workbook

Sheet Лист1
D1: «УТВЕРЖДАЮ»
D2: Директор ДЭиБПД
D3: АО «Коломенский Завод»
D4: ______________ Степанкевич В.С.
B7: № __1-КЗ.М10.К__ | D7: от «_30_» _июля_ 20 _26_ г.
A9: Ведомость объемов работ Объект: «Реконструкция цеха М-10, инв. №290000111 ( 3-ий пролет в осях «Н-Р»/«11-22»; «4-3'»)» на территории АО «Коломенский Завод».
A11: № | B11: Вид работ | C11: Ед. измер | D11: Формула расчета | E11: Объем | F11: Примечание
A12: 1 | B12: =A12+1 -> 2 | C12: =B12+1 -> 3 | D12: 4 | E12: 5 | F12: 6
A13: Электроснабжение.
A14: 1 | B14: Монтаж распределительного шкафа с рубильником | C14: шт. | D14: 4+1 | E14: =ВычислитьЯчейку(D14) ->  | F14: ШР11-73707-22У3, 380В, 3хПН2-100А+2хПН2-250А(1 шт.); ШР11-73702-22У3, 380В, Iн.=250А, 5хПН2-100А(4 шт).
A15: =A14+1 -> 2 | B15: Монтаж силового ящика с рубильником | C15: шт. | D15: 4 | E15: =ВычислитьЯчейку(D15) ->  | F15: ЯРП11М-371-32УХЛ3У3, 380В, Iн.=400А. Степень защиты IP32.
A16: =A15+1 -> 3 | B16: Монтаж силового ящика с автоматическими выключателями | C16: шт. | D16: 4+4+1+1 | F16: - Бокс КМПн 1/4 "IEК" пластиковый, навесной, 4 модуля. Артикул МКР31-N-04-30-135(4 шт.); - Автомат дифференциальный АД12 "IEК", двухполюсный, Iн.=16А, Iн.дифф.=30mА(4 шт.); - Бокс КМПн 2/4 "IEK"пластиковый, навесной, 4 модуля. Артикул МКР42-N-04-30-12(1 шт.); - Автомат дифференциальный АД12, двухполюсный, Iн.=6А, Iн.дифф.=30mА(1 шт.).
A17: =A16+1 -> 4 | B17: Прокладка силового кабеля с затяжкой в гофрированную трубу в полу | C17: м.п. | D17: 30+35+5 | F17: Кабель силовой КГВВнг 4х95 (30 м); Кабель силовой КГВВнг 4х50 (35 м); Кабель силовой КГВВнг 4х25 (5 м);
A18: =A17+1 -> 5 | B18: Прокладка силового кабеля с креплением к колонне на скобах | C18: м.п. | D18: 5+25 | E18: =ВычислитьЯчейку(D18) ->  | F18: Кабель силовой КГВВнг 4х70 (5 м); Кабель силовой КГВВнг 4х95 (25 м);
A19: =A18+1 -> 6 | B19: Прокладка гофрированной трубы двустенной d=63 мм по колонне | C19: м.п. | D19: 20+5 | F19: Труба d=63 "RuVinil" гибкая гофрированная легкого типа. Код 16301. (25 м); Скоба К146пУ2. ТУ 36-1448-82.(50 шт.); Скоба К731У2, d=20мм. ТУ 36-1448-82.(25 шт.).
A20: =A19+1 -> 7 | B20: Прокладка гофрированной трубы двустенной d=63 мм в полу | C20: м.п. | D20: 3 | F20: Труба d=63 из ПНД "RuVinil" гибкая гофрированная тяжелого типа. Код 26311.(3 м)
A21: 8 | B21: Прокладка гофрированной трубы двустенной d=90 мм в полу | C21: м.п. | D21: 25 | F21: Труба гофрированная двустенная ПНД/ПВД d=90 "RUVinil". Артикул Т2-КЛО-090К.(25 м)
A22: 9 | B22: Прокладка гофрированной трубы двустенной d=50 мм в полу | C22: м.п. | D22: 30 | F22: Труба d=50 "RuVinil" гибкая гофрированная легкого типа. Код 15001. (30 м)
A23: 10 | B23: Прокладка силового кабеля с затяжкой в гофрированную трубу в полу | C23: м.п. | D23: 10+45+8 | E23: =ВычислитьЯчейку(D23) ->  | F23: Кабель ВВГнг 4х2,5 (63 м)
A24: =A23+1 -> 11 | B24: Прокладка силового кабеля с креплением к стене на скобах | C24: м.п. | D24: 35+5 | E24: =ВычислитьЯчейку(D24) ->  | F24: Кабель ВВГнг 4х1,5 (40 м)
A25: 12 | B25: Прокладка гофрированной трубы двустенной d=25 мм в полу | C25: м.п. | D25: 35+10+15 | E25: =ВычислитьЯчейку(D25) ->  | F25: Труба d=25 из ПНД "RuVinil" гибкая гофрированная тяжелого типа. Код 22511. (60 м);
A26: 13 | B26: Прокладка гофрированной трубы двустенной d=20 мм в полу | C26: м.п. | D26: 30+3 | E26: =ВычислитьЯчейку(D26) ->  | F26: Труба d=20 из ПНД "RuVinil" гибкая гофрированная тяжелого типа. Код 22011. (30 м); Труба гофрированная d=20 "RUVinil". легкого типа. Артикул 12001. (3 м).
A27: 14 | B27: Присоединение наконечников | C27: шт. | D27: 64+16+32+10+10 | E27: =ВычислитьЯчейку(D27) ->  | F27: Наконечник 95-12-15-МУХЛ3. ГОСТ 7386-80. (64 шт.) Наконечник 70-10-13-МУХЛ3. ГОСТ 7386-80.(16 шт); Наконечник 50-10-11-МУХЛ3. ГОСТ 7386-80. (32 шт.); Наконечник 25-8-8-МУХЛ3. ГОСТ 7386-80. (10 шт.); Наконечник 16-6-6-МУХЛ3. ГОСТ 7386-80. (10 шт.).
A28: Воздухоснабжение
A29: =A27+1 -> 15 | B29: Прокладка трубы полипропиленовой PP-R 20х3,4 | C29: м.п. | D29: 6+35 | E29: =ВычислитьЯчейку(D29) ->  | F29: Трубы полипропиленовой PP-R 20х3,4 (41м); Фитинг полипропиленовый муфта d=20(18 шт.); Фитинг полипропиленовый угольник d=20(35 шт.); Фитинг полипропиленовый с переходом на наружнную резьбу (20мм х 1/2") (26 шт.)
A30: =A29+1 -> 16 | B30: Установка крана шарового муфтового | C30: шт. | D30: 24+5 | E30: =ВычислитьЯчейку(D30) ->  | F30: Кран шаровый муфтовый 11Б27п1 d=15 мм(24 шт); Кран шаровый муфтовый 11Б27п1 d=20 мм(5 шт);
A31: =A30+1 -> 17 | B31: Монтаж фитингов | C31: шт. | D31: 4*3 | E31: =ВычислитьЯчейку(D31) ->  | F31: Муфта Ду20 ГОСТ8966-75(4 шт.); Сгон Ду20 ГОСТ8969-75(4 шт.); Контрогайка Ду20 ГОСТ8968-75(4 шт.)
A32: 18 | B32: Присоединение стальных трубопроводов d=25 к существующему трубопроводу d=25 мм | C32: шт. | D32: 1
A33: 19 | B33: Прокладка трубы стальной 20*2,8 | C33: м.п. | D33: 6+10 | E33: =ВычислитьЯчейку(D33) ->  | F33: Труба20х2.8. ГОСТ3262-75(16 м)
A34: 20 | B34: Проведение гидравлических испытаний трубопровода на герметичность | C34: м | D34: 6+10 | E34: 16 | F34: Согласно примечанию РД после монтажа выполнить гидравлические испытания трубопровода.
A35: 21 | B35: Изготовление влагоотделителя из стальной трубы | C35: м/кг | D35: 0.3/5.8 | E35: 0.3/5.8 | F35: Труба стальная бесшовная 159*5 (0,3 м)
A36: 22 | B36: Установка влагоотделителя | C36: шт. | D36: 1 | E36: =ВычислитьЯчейку(D36) -> 
A37: 23 | B37: Огрунтовка металлических поверхностей трубопроводов | C37: м2 | D37: 1+5 | F37: Грунт ГФ-021
A38: 24 | B38: Окраска металлических огрунтованных поверхностей | C38: м2 | D38: 1+5 | F38: Эмаль ПФ-115
A39: 25 | B39: Монтаж осушителя рефрежераторного типа | C39: м2 | D39: 1+4 | E39: =ВычислитьЯчейку(D39) ->  | F39: Осушитель рефрежераторного типа мод.IDFA4E-23 Q=510л/мин;G=1/2" (1 шт.); Осушитель рефрежераторного типа мод.IDFA11E-23 Q=1330л/мин;G=3/4" (4 шт.)
B43: Производство работ осуществляется в помещениях эксплуатируемого объекта капитального строительства, эксплуатация которого не прекращена, в том числе для объектов производственного и непроизводственного назначения без остановки рабочего процесса, при этом: в зоне производства работ отсутствуют загромождающие помещение предметы.
B45: Составил:
B46: Руководитель проекта ООО "КикГеострой" | D46: Липатов В.Е.
B47: (должность) | D47: (подпись) (ФИО)
B48: «_20_» _июля_ 20 _26_ г.
B50: Проверил:
B51: Ведущий специалист отдела по строительству АО "Коломенский Завод" | D51: Самойлов А.О.
B52: (должность) | D52: (подпись) (ФИО)
B53: «_20_» _июля_ 20 _26_ г.
B55: Начальник отдела по строительству АО "Коломенский Завод" | D55: Губанов П.В.
B56: (должность) | D56: (подпись) (ФИО)
B57: «_20_» _июля_ 20 _26_ г.

Sheet Лист2
B6: 8.475 | C6: =(0.45*4) -> 1.8 | D6: =C6/0.2 -> 9 | E6: =(D6*B6)*2 -> 152.55
B7: 8.8 | C7: =24-(0.45*4) -> 22.2 | D7: =C7/0.2 -> 111 | E7: =(D7*B7)*2 -> 1953.6 | G7: =E7+E6 -> 2106.15
G8: =E9+E10 -> 2052.11875
B9: 5.575 | C9: =0.325 -> 0.325 | D9: =C9/0.2 -> 1.625 | E9: =(D9*B9)*2 -> 18.11875
B10: 24 | C10: =8.475 -> 8.475 | D10: =C10/0.2 -> 42.375 | E10: =(D10*B10)*2 -> 2034 | G10: 0.888 | H10: =((E6+E7+E9+E10)*G10)*0.001 -> 3.69254265
H14: =0.25*0.125*0.025 -> 0.00078125 | O14: =3.14*0.84 -> 2.6376
I16: =H14*61 -> 0.04765625 | O16: =0.125*4 -> 0.5
J17: =I16*3 -> 0.14296875
E18: 1 | F18: 0.2 | G18: =E18/F18 -> 5 | K18: =J17*2 -> 0.2859375 | O18: =O14*O16 -> 1.3188 | Q18: =O18*2 -> 2.6376
E19: 1 | F19: 0.2 | G19: =E19/F19 -> 5 | H19: =(G18+G19)*G10 -> 8.88
I20: =H19*2 -> 17.76
C30: Устройство трубопровода из полипропиленовых труб | D30: м | E30: 5
C31: Устройство трубки для пневмо систем | D31: м | E31: 1
C32: Устройство трубопровода из стальной трубы ВГП | D32: м | E32: 3
C33: Монтаж крана муфтового с ручным приводом или без привода водопроводная на номинальное давление до 10 МПа, номинальный диаметр: 15 мм | D33: шт | E33: 4
C34: Монтаж кранов шаровых Ø15 | D34: шт | E34: 4
C35: Монтаж крана муфтового Ø 20 | D35: шт | E35: 1
C36: Монтаж кранов шаровых Ø20 | D36: шт | E36: 1
C37: Устройство фитингов прямых с внутренней резьбой с накидной гайкой | D37: шт | E37: 1
C38: Устройство муфт полипропиленовых Ø 20 мм | D38: шт | E38: 3
C39: Устройство фитингов полипропиленовых с переходом на наружную резьбу 20 мм | D39: шт | E39: 2
C40: Установка сгонов стальных оцинкованных с муфтой и контргайкой, Ø 20 мм | D40: шт | E40: 1
C41: Установка влагоотделителя | D41: шт | E41: 1
C42: Врезка трубопровода в действующие магистрали, диаметр наружный врезаемой трубы 57 мм | D42: шт | E42: 1

Sheet Лист3
D1: «УТВЕРЖДАЮ»
D2: Директор ДЭиБПД
D3: АО «Коломенский Завод»
D4: ______________ Степанкевич В.С.
B7: № __2-КЗ.М10.Д__ | D7: от «_23_» _июня_ 20 _25_ г.
A9: Дефектная ведомость объемов работ Объект: «Устройство основания под моечную машину для мойки крышек цилиндров мод. ММ1042 в цехе М-10 в осях Т-Ф/(+3.0м)14-15(+1.0м)» на территории АО «Коломенский Завод».
A11: № | B11: Вид работ | C11: Ед. измер | D11: Формула расчета | E11: Объем | F11: Примечание
A13: Раздел. 1 Подготовочные работы в осях "Т-Ф/(+3.0м)14-15(+1.0м)"
A14: 1 | B14: Прорезка существующих бетонных полов Т=300 мм | C14: м.п | D14: ((10+9)*2)+0.33+0.33 | E14: =ВычислитьЯчейку(D14) -> 
A15: =A14+1 -> 2 | B15: Разборка существующих бетонных полов Т=300 мм | C15: м3 | D15: ((10*8.65)+(5.55*0.33)+(2.75*0.33)+(0.75*0.33))*0.3 | E15: =ВычислитьЯчейку(D15) -> 
A16: =A15+1 -> 3 | B16: Разработка грунта до отметки -0,400 мм | C16: м3 | D16: ((10*8.65)+(5.55*0.33)+(2.75*0.33)+(0.75*0.33))*0.1 | E16: =ВычислитьЯчейку(D16) -> 
A17: Раздел. 2 Устройство основания под моечную машину для мойки крышек цилиндров мод. ММ1042 в осях "Т-Ф/(+3.0м)14-15(+1.0м)"
A18: =A16+1 -> 4 | B18: Уплотнение грунта щебенем Т= 50 мм | C18: м3 | D18: ((10*8.65)+(5.55*0.33)+(2.75*0.33)+(0.75*0.33))*0.05 | E18: =ВычислитьЯчейку(D18)*1.02 ->  | F18: Прим. Гравийный щебень фр. 20-40
A19: =A18+1 -> 5 | B19: Устройство бетонной подготовки Т=100 мм | C19: м3 | D19: ((10*8.65)+(5.55*0.33)+(2.75*0.33)+(0.75*0.33))*0.1 | E19: =ВычислитьЯчейку(D19) ->  | F19: Прим. Бетон В15 (М200)
A20: =A19+1 -> 6 | B20: Устройство обмазочной гидроизоляции (2 слоя) | C20: м2 | D20: (10*8.65)+(5.55*0.33)+(2.75*0.33)+(0.75*0.33) | E20: =ВычислитьЯчейку(D20) ->  | F20: Прим. Праймер битумный "ТехноНиколь"
A21: 7 | B21: Устройство арматурного каркаса 200х200х12 | C21: тн. | D21: (8.88*89)*0.001 | E21: =ВычислитьЯчейку(D21) ->  | F21: Прим. Арматура Ø12 А500С
A22: 8 | B22: Устройство арматурного каркаса 200х200х10 | C22: тн. | D22: (6.17*89)*0.001 | E22: =ВычислитьЯчейку(D22) ->  | F22: Прим. Арматура Ø10 А500С
A23: 9 | B23: Устройство арматурного каркаса из арм. Ø 10 | C23: тн. | D23: (2.4*89)*0.001 | F23: Прим. Арматура Ø10 А240
A24: 10 | B24: Бетонирование полов Т=300 мм | C24: м3 | D24: ((10*8.65)+(5.55*0.33)+(2.75*0.33)+(0.75*0.33))*0.3 | E24: =ВычислитьЯчейку(D24) ->  | F24: Прим. Бетон В22.5 (М300)
A25: 11 | B25: Устройство деформационного шва из вспененного полиэтилена Т=10 мм; h=260 мм | C25: м.п. | D25: ((10+9)*2)+0.33+0.33 | E25: =ВычислитьЯчейку(D25) ->  | F25: Прим. Вспененный полиэтилен НПС 10х1050x25000 мм
A26: 12 | B26: Шлифование поверхности фундамента | C26: м2 | D26: (10*8.65)+(5.55*0.33)+(2.75*0.33)+(0.75*0.33) | E26: =ВычислитьЯчейку(D26) -> 
A27: 13 | B27: Упрочнение бетонного покрытия пола сухой смесью | C27: м2 | D27: (10*8.65)+(5.55*0.33)+(2.75*0.33)+(0.75*0.33) | F27: Прим. Master Top 450
A28: 14 | B28: Покрытие ж/бетонного пола пропиткой | C28: м2 | D28: (10*8.65)+(5.55*0.33)+(2.75*0.33)+(0.75*0.33) | F28: Прим. Master Top C713 (Цвет серый, RAL 7035)
A29: 15 | B29: Прорезка деформационно-усадочных швов Т=10 мм | C29: м.п. | D29: ((6*3)*3)+(1*3)
A30: 16 | B30: Устройство деформационно-усадочных шва из герметика h=40 мм | C30: м2 | D30: (((6*3)*3)+(1*3))*0.01 | E30: =ВычислитьЯчейку(D30) ->  | F30: Прим. Герметик полиуретановый (плотность 1250 г/м3)
A31: 17 | B31: Устройство деформационного шва из герметика h=40 мм | C31: м2 | D31: (((10+9)*2)+0.33+0.33)*0.01 | E31: =ВычислитьЯчейку(D31) ->  | F31: Прим. Герметик полиуретановый (плотность 1250 г/м3)
B33: Производство работ осуществляется в помещениях эксплуатируемого объекта капитального строительства, эксплуатация которого не прекращена, в том числе для объектов производственного и непроизводственного назначения без остановки рабочего процесса, при этом: в зоне производства работ отсутствуют загромождающие помещение предметы.
B34: Объём посчитанной данной дефектной ведомостью может отличаться от фактического при выполнении строительно-монтажных работ. При производстве строительно-монтажных работ могут возникнуть работы не учтённые данной деффектной ведомостью.
B36: Проверил:
B37: Начальник отдела по строительству АО "Коломенский Завод"
B38: (должность) | D38: Губанов П.В.
B39: "23" июня 2025 г. | D39: (подпись) (ФИО)

Sheet Материалы
B2: Электроснабжение | F2: =SUM(F4:F34) -> 1065441
B3: Монтаж распределительного шкафа с рубильником | C3: ед. изи | D3: кол | E3: цена руб. с НДС | F3: сумма руб. с НДС | G3: ПРИМЕЧАНИЕ 1
A4: 1 | B4: ШР11-73707-22У3, 380В, 3хПН2-100А+2хПН2-250А(1 шт.); | C4: шт | D4: 1 | E4: 74000 | F4: =E4*D4 -> 74000 | G4: Счет на оплату № 707 от 3 августа 2026 г
A5: 2 | B5: ШР11-73702-22У3, 380В, Iн.=250А, 5хПН2-100А(4 шт). | C5: шт | D5: 4 | E5: 70600 | F5: =E5*D5 -> 282400 | G5: Счет на оплату № 707 от 3 августа 2026 г
B6: Монтаж силового ящика с рубильником | F6: 0
A7: 3 | B7: ЯРП11М-371-32УХЛ3У3, 380В, Iн.=400А. Степень защиты IP32. | C7: шт | D7: 4 | E7: 29000 | F7: 116000
B8: Монтаж силового ящика с автоматическими выключателями | F8: 0
A9: 4 | B9: Бокс КМПн 1/4 "IEК" пластиковый, навесной, 4 модуля. Артикул МКР31-N-04-30-135(4 шт.); | C9: шт | D9: 4 | E9: 450 | F9: 1800
A10: 5 | B10: Автомат дифференциальный АД12 "IEК", двухполюсный, Iн.=16А, Iн.дифф.=30mА(4 шт.); | C10: шт | D10: 4 | E10: 850 | F10: 3400
A11: 6 | B11: Бокс КМПн 2/4 "IEK"пластиковый, навесной, 4 модуля. Артикул МКР42-N-04-30-12(1 шт.); | C11: шт | D11: 1 | E11: 572 | F11: 572
A12: 7 | B12: Автомат дифференциальный АД12, двухполюсный, Iн.=6А, Iн.дифф.=30mА(1 шт.). | C12: шт | D12: 1 | E12: 720 | F12: 720
B13: Кабельная продукция | F13: 0
A14: 8 | B14: Кабель силовой КГВВнг 4х95 (30 м); | C14: м | D14: 30 | E14: 6428 | F14: 192840
A15: 9 | B15: Кабель силовой КГВВнг 4х50 (35 м); | C15: м | D15: 35 | E15: 3493 | F15: 122255
A16: 10 | B16: Кабель силовой КГВВнг 4х25 (5 м); | C16: м | D16: 5 | E16: 1759 | F16: 8795
A17: 11 | B17: Кабель силовой КГВВнг 4х70 (5 м); | C17: м | D17: 5 | E17: 4857 | F17: 24285 | H17: https://cable.ru/cable/marka-kgvvng_a__ls_4h70.php?utm_campaign=search_Dinamicheskie_obyavl_cable_prioritetnaya_poisk_119010781&utm_medium=cpc&utm_source=yandex&utm_term=---autotargeting:+1871984316197337233:+54551112363&utm_content=ph%7C54551112363%7Ccid%7C119010781%7Cgid%7C5557544245%7Caid%7C1871984316197337233%7CSOURCE%7Csearch%7Cyandex.ru%7CМытищи%7C10740%7Cdesktop%7CADV%7C%7C%7CDETAIL%7Cdynamic_places%7C3%7Cno%7Cnone%7C54551112363%7Cmain&utm_id=119010781&etext=&yclid=16003512234728488959
A18: 12 | B18: Кабель силовой КГВВнг 4х95 (25 м); | C18: м | D18: 25 | E18: 6427 | F18: 160675
A19: 13 | B19: Труба d=63 "RuVinil" гибкая гофрированная легкого типа. Код 16301. (25 м); | C19: м | D19: 25 | E19: 298 | F19: 7450
A20: 14 | B20: Скоба К146пУ2. ТУ 36-1448-82.(50 шт.); | C20: шт | D20: 50 | E20: 37 | F20: 1850
A21: 15 | B21: Скоба К731У2, d=20мм. ТУ 36-1448-82.(25 шт.). | C21: шт | D21: 25 | E21: 36 | F21: 900
A22: 16 | B22: Труба d=63 из ПНД "RuVinil" гибкая гофрированная тяжелого типа. Код 26311.(3 м) | C22: м | D22: 3 | E22: 160 | F22: 480
A23: 17 | B23: Труба гофрированная двустенная ПНД/ПВД d=90 "RUVinil". Артикул Т2-КЛО-090К.(25 м) | C23: м | D23: 25 | E23: 190 | F23: 4750
A24: 18 | B24: Труба d=50 "RuVinil" гибкая гофрированная легкого типа. Код 15001. (30 м) | C24: м | D24: 30 | E24: 85 | F24: 2550
A25: 19 | B25: Кабель ВВГнг 4х2,5 (63 м) | C25: м | D25: 63 | E25: 153 | F25: 9639
A26: 20 | B26: Кабель ВВГнг 4х1,5 (40 м) | C26: м | D26: 40 | E26: 98 | F26: 3920
A27: 21 | B27: Труба d=25 из ПНД "RuVinil" гибкая гофрированная тяжелого типа. Код 22511. (60 м); | C27: м | D27: 60 | E27: 73 | F27: 4380 | G27: цена кратно упаковки
A28: 22 | B28: Труба d=20 из ПНД "RuVinil" гибкая гофрированная тяжелого типа. Код 22011. (30 м); | C28: м | D28: 30 | E28: 136 | F28: 4080 | G28: цена кратно упаковки
A29: 23 | B29: труба гофрированная d=20 "RUVinil". легкого типа. Артикул 12001. (3 м). | C29: м | D29: 3 | E29: 136 | F29: 408 | G29: цена кратно упаковки
A30: 24 | B30: Наконечник 95-12-15-МУХЛ3. ГОСТ 7386-80. (64 шт.) | C30: шт | D30: 64 | E30: 261 | F30: 16704 | G30: цена кратно упаковки
A31: 25 | B31: Наконечник 70-10-13-МУХЛ3. ГОСТ 7386-80.(16 шт); | C31: шт | D31: 16 | E31: 453 | F31: 7248 | G31: цена кратно упаковки
A32: 26 | B32: Наконечник 50-10-11-МУХЛ3. ГОСТ 7386-80. (32 шт.); | C32: шт | D32: 32 | E32: 300 | F32: 9600 | G32: цена кратно упаковки
A33: 27 | B33: Наконечник 25-8-8-МУХЛ3. ГОСТ 7386-80. (10 шт.); | C33: шт | D33: 10 | E33: 325 | F33: 3250 | G33: цена кратно упаковки
A34: 28 | B34: Наконечник 16-6-6-МУХЛ3. ГОСТ 7386-80. (10 шт.). | C34: шт | D34: 10 | E34: 49 | F34: 490 | G34: цена кратно упаковки
B35: Воздухоснабжение | F35: =SUM(F36:F53) -> 394693
A36: 1 | B36: Трубы полипропиленовой PP-R 20х3,4 (41м); | C36: м | D36: 41 | E36: 53 | F36: 2173
A37: 2 | B37: Фитинг полипропиленовый муфта d=20(18 шт.); | C37: шт | D37: 18 | E37: 7 | F37: 126
A38: 3 | B38: Фитинг полипропиленовый угольник d=20(35 шт.); | C38: шт | D38: 35 | E38: 8 | F38: 280
A39: 4 | B39: Фитинг полипропиленовый с переходом на наружнную резьбу (20мм х 1/2") (26 шт.) | C39: шт | D39: 26 | E39: 63 | F39: 1638
A40: 5 | B40: Кран шаровый муфтовый 11Б27п1 d=15 мм(24 шт); | C40: шт | D40: 24 | E40: 361 | F40: 8664
A41: 6 | B41: Кран шаровый муфтовый 11Б27п1 d=20 мм(5 шт); | C41: шт | D41: 5 | E41: 499 | F41: 2495
A42: 7 | B42: Муфта Ду20 ГОСТ8966-75(4 шт.); | C42: шт | D42: 4 | E42: 120 | F42: 480
A43: 8 | B43: Сгон Ду20 ГОСТ8969-75(4 шт.); | C43: шт | D43: 4 | E43: 60 | F43: 240
A44: 9 | B44: Контрогайка Ду20 ГОСТ8968-75(4 шт.) | C44: шт | D44: 4 | E44: 207 | F44: 828
A45: 10 | B45: Труба20х2.8. ГОСТ3262-75(16 м) | C45: м | D45: 16 | F45: 0
B46: Согласно примечанию РД после монтажа выполнить гидравлические испытания трубопровода. | C46: м | D46: 16 | F46: 0
A47: 11 | B47: Труба стальная бесшовная 159*5 (0,3 м) | C47: м | D47: 0.3 | E47: 51630 | F47: 15489 | G47: Труба кратно 3 м.
A48: 12 | B48: Установка влагоотделителя | C48: шт | D48: 1 | E48: 5701 | F48: 5701 | G48: Фильтр влагоотделитель с редуктором (1/2"; 16 бар) МАСТАК 691-41
A49: 13 | B49: Грунт ГФ-021 | C49: м2 | D49: 6 | E49: 120 | F49: 720
A50: 14 | B50: Эмаль ПФ-115 | C50: м2 | D50: 6 | E50: 120 | F50: 720
B51: Монтаж осушителя рефрежераторного типа | F51: 0
A52: 15 | B52: Осушитель рефрежераторного типа мод.IDFA4E-23 Q=510л/мин;G=1/2" (1 шт.); Осушитель рефрижераторный ARIACOM DD 36 | C52: шт | D52: 1 | E52: 60763 | F52: 60763 | G52: данный производител отсутствует на рынке РФ замена
A53: 16 | B53: Осушитель рефрежераторного типа мод.IDFA11E-23 Q=1330л/мин;G=3/4" (4 шт.) Осушитель рефрижераторный ARIACOM DD 72 | C53: шт | D53: 4 | E53: 73594 | F53: 294376 | G53: данный производител отсутствует на рынке РФ замена
B54: ИТОГО | F54: =SUM(F2,F35) -> 1460134
